[Event "Charlotte Spring IM-B 2024"]
[Site "Charlotte"]
[Date "2024.03.28"]
[Round "2.3"]
[White "Narayanan, Samrug"]
[Black "Jiang, Andrew"]
[Result "1-0"]
[ECO "C95"]
[WhiteElo "2343"]
[BlackElo "2181"]
[Annotator "RC"]
[PlyCount "124"]
[EventDate "2024.03.27"]
[EventType "tourn"]
[EventCountry "USA"]
[SourceTitle "playchess.com"]
[Source "ChessBase"]
[SourceQuality "1"]
[TimeControl "5400+30"]

1. e4 {[%emt 0:00:03]} e5 {[%emt 0:00:09]} 2. Nf3 {[%emt 0:00:05]} Nc6 {[%emt 0:00:08]} 3. Bb5 {[%emt 0:00:04]} a6 {[%emt 0:00:09]} 4. Ba4 {[%emt 0:00:03]} Nf6 {[%emt 0:00:08]} 5. O-O {[%emt 0:00:04]} Be7 {[%emt 0:00:10]} 6. Re1 {[%emt 0:00:04]} b5 {[%emt 0:00:09]} 7. Bb3 {[%emt 0:00:05]} d6 {[%emt 0:00:07]} 8. c3 {[%emt 0:00:09]} O-O {[%emt 0:00:13]} 9. h3 {[%emt 0:00:02]} Nb8 {[%emt 0:00:10]} 10. d4 {[%emt 0:00:04]} Nbd7 {[%emt 0:00:08]} 11. Nbd2 {[%emt 0:00:04]} Bb7 {[%emt 0:00:10]} 12. Bc2 {[%emt 0:00:03]} Re8 {[%emt 0:00:08]} 13. Nf1 {[%emt 0:00:05]} Bf8 {[%emt 0:00:08]} 14. Ng3 {[%emt 0:00:03]} g6 {[%emt 0:00:09]} 15. b3 {[%emt 0:00:03]} c6 {[%emt 0:04:13]} 16. Be3 {[%emt 0:04:52]} Bg7 {[%emt 0:03:43]} 17. Qd2 {[%emt 0:00:47]} h5 {[%emt 0:01:49]} 18. a4 {[%emt 0:04:47]} Qc7 {[%emt 0:03:33]} 19. Rad1 {[%emt 0:07:46]} Rad8 {[%emt 0:05:35]} 20. Bh6 {[%emt 0:06:31]} Nh7 {[%emt 0:01:30]} 21. Bxg7 {[%emt 0:00:38]} Kxg7 {[%emt 0:00:11]} 22. b4 {[%emt 0:04:03]} Nb6 {[%emt 0:05:29]} 23. a5 {[%emt 0:06:26]} Nc4 {[%emt 0:01:03]} 24. Qc1 {[%emt 0:00:13]} d5 {[%emt 0:05:37]} 25. Nxe5 {[%emt 0:05:37]} Nxe5 {[%emt 0:02:01]} 26. dxe5 {[%emt 0:00:25]} Rxe5 {[%emt 0:06:55]} 27. exd5 {[%emt 0:12:05]} Rdxd5 {[%emt 0:21:18]} 28. Ne4 {[%emt 0:15:19]} Qe7 {[%emt 0:00:32]} 29. Nc5 {[%emt 0:02:26]} Rxd1 {[%emt 0:00:32]} 30. Rxd1 {[%emt 0:00:04]} Bc8 {[%emt 0:00:15]} 31. Qf4 {[%emt 0:06:15]} Nf6 {[%emt 0:02:09]} 32. Bb3 {[%emt 0:02:50]} Re2 {[%emt 0:25:50]} 33. Qd4 {[%emt 0:03:21]} Kh7 {[%emt 0:00:57]} 34. Rd3 {[%emt 0:04:32]} Re1+ {[%emt 0:09:28]} 35. Kh2 {[%emt 0:00:07]} Ne8 {[%emt 0:00:13]} 36. Qf4 {[%emt 0:03:30]} Nf6 {[%emt 0:01:00]} 37. Qd6 {[%emt 0:03:24]} Ng4+ {[%emt 0:02:28]} 38. hxg4 {[%emt 0:00:06]} Qh4+ {[%emt 0:00:06]} 39. Rh3 {[%emt 0:00:04]} Qxf2 {[%emt 0:00:05]} 40. Qd4 {[%emt 0:00:20]} Qf1 {[%emt 0:00:41]} 41. Nd3 {[%emt 0:07:54]} Re2 {[%emt 0:00:13]} 42. Nf4 {[%emt 0:02:11]} Rf2 {[%emt 0:00:03]} 43. Rf3 {[%emt 0:00:57]} Rxg2+ {[%emt 0:01:51]} 44. Nxg2 {[%emt 0:00:04]} Qxf3 {[%emt 0:00:07]} 45. gxh5 {[%emt 0:01:17]} Qxh5+ {[%emt 0:00:13]} 46. Qh4 {[%emt 0:00:28]} Qxh4+ {[%emt 0:00:18]} 47. Nxh4 {[%emt 0:00:03]} Kg7 {[%emt 0:00:06]} 48. Nf3 {[%emt 0:00:03]} Kf6 {[%emt 0:00:13]} 49. Kg3 {[%emt 0:00:32]} g5 {[%emt 0:00:23]} 50. Bc2 {[%emt 0:01:03]} g4 {[%emt 0:00:19]} 51. Nd4 {[%emt 0:00:06]} Kg5 {[%emt 0:00:08]} 52. Bb3 {[%emt 0:02:09]} f5 {[%emt 0:00:14]} 53. Ne2 {[%emt 0:00:02]} Bd7 {[%emt 0:00:20]} 54. Nf4 {[%emt 0:00:13]} Kf6 {[%emt 0:00:10]} 55. Kf2 {[%emt 0:00:07]} Kg5 {[%emt 0:00:14]} 56. Ke3 {[%emt 0:01:05]} Kh4 {[%emt 0:00:01]} 57. Bc2 {[%emt 0:00:27]} Kg3 {[%emt 0:04:48]} 58. Ne2+ {[%emt 0:00:13]} Kg2 {[%emt 0:00:00]} 59. Bd3 {[%emt 0:01:47]} Kh3 {[%emt 0:00:00]} 60. Kf4 {[%emt 0:00:42]} Kg2 {[%emt 0:00:00]} 61. Ng3 {[%emt 0:00:03]} Kf2 {[%emt 0:00:00]} 62. Bxf5 {[%emt 0:00:38]} Be8 {[%emt 0:00:00]} 1-0

[Event "Charlotte Spring IM-B 2024"]
[Site "Charlotte"]
[Date "2024.03.28"]
[Round "2.4"]
[White "Castillo Coca, Mairebis"]
[Black "Tang, Benjamin"]
[Result "0-1"]
[ECO "B13"]
[WhiteElo "2043"]
[BlackElo "2324"]
[Annotator "RC"]
[PlyCount "58"]
[EventDate "2024.03.27"]
[EventType "tourn"]
[EventCountry "USA"]
[SourceTitle "playchess.com"]
[Source "ChessBase"]
[SourceQuality "1"]
[TimeControl "5400+30"]

1. d4 {[%emt 0:00:03]} Nf6 {[%emt 0:01:06]} 2. Nc3 {[%emt 0:00:14]} d5 {[%emt 0:00:05]} 3. Bf4 {[%emt 0:00:11]} c5 {[%emt 0:00:07]} 4. e3 {[%emt 0:00:14]} cxd4 {[%emt 0:00:05]} 5. exd4 {[%emt 0:00:05]} Bg4 {[%emt 0:00:05]} 6. Nf3 {[%emt 0:01:46]} Nc6 {[%emt 0:01:01]} 7. Nb5 {[%emt 0:06:40]} Rc8 {[%emt 0:00:37]} 8. c3 {[%emt 0:00:35]} Qa5 {[%emt 0:20:19]} 9. h3 {[%emt 0:45:10]} Bxf3 {[%emt 0:01:23]} 10. Qxf3 {[%emt 0:03:18]} a6 {[%emt 0:00:51]} 11. b4 {[%emt 0:03:16]} Qb6 {[%emt 0:00:38]} 12. Nc7+ {[%emt 0:07:36]} Rxc7 {[%emt 0:00:30]} 13. Bxc7 {[%emt 0:00:01]} Qxc7 {[%emt 0:00:03]} 14. b5 {[%emt 0:00:18]} axb5 {[%emt 0:01:37]} 15. Bxb5 {[%emt 0:00:02]} e6 {[%emt 0:01:05]} 16. O-O {[%emt 0:00:12]} Bd6 {[%emt 0:01:19]} 17. Rfd1 {[%emt 0:03:35]} O-O {[%emt 0:02:47]} 18. Rab1 {[%emt 0:04:00]} Na5 {[%emt 0:02:13]} 19. Bd3 {[%emt 0:00:37]} Rc8 {[%emt 0:05:18]} 20. Rdc1 {[%emt 0:00:34]} h6 {[%emt 0:01:13]} 21. g3 {[%emt 0:02:27]} e5 {[%emt 0:14:13]} 22. Bf5 {[%emt 0:00:13]} e4 {[%emt 0:01:36]} 23. Qd1 {[%emt 0:08:04]} Ra8 {[%emt 0:02:50]} 24. Rb5 {[%emt 0:04:34]} Nc4 {[%emt 0:41:29]} 25. Qb3 {[%emt 0:04:04]} b6 {[%emt 0:00:00]} 26. Kg2 {[%emt 0:03:48]} Ra3 {[%emt 0:00:00]} 27. Qc2 {[%emt 0:01:28]} Bxg3 {[%emt 0:00:00]} 28. Qe2 {[%emt 0:00:46]} Qf4 {[%emt 0:00:00]} 29. fxg3 {[%emt 0:00:33]} Qxc1 {[%emt 0:00:00]} 0-1

[Event "Charlotte Spring IM-B 2024"]
[Site "Charlotte"]
[Date "2024.03.28"]
[Round "2.5"]
[White "Bregadze, Levan"]
[Black "Lima, Darcy"]
[Result "1-0"]
[ECO "E90"]
[WhiteElo "2435"]
[BlackElo "2364"]
[Annotator "TA"]
[PlyCount "127"]
[EventDate "2024.03.27"]
[EventType "tourn"]
[EventCountry "USA"]
[SourceTitle "playchess.com"]
[Source "ChessBase"]
[SourceQuality "1"]
[TimeControl "5400+30"]

{[%evp 59,127,137,89,59,172,171,241,104,96,95,92,98,96,97,113,102,144,56,47,18,141,126,117,134,133,135,135,135,163,146,174,182,154,116,111,109,116,128,117,93,178,146,142,140,193,187,188,191,335,266,276,246,244,231,338,321,363,357,317,298,324,321,394,381,524,516,460,335,1323,1306]} 1. Nf3 {[%emt 0:00:06]} Nf6 {[%emt 0:00:06]} 2. c4 {[%emt 0:00:12]} g6 {[%emt 0:00:22]} 3. d4 {[%emt 0:00:16]} Bg7 {[%emt 0:00:05]} 4. Nc3 {[%emt 0:00:05]} O-O {[%emt 0:02:00]} 5. e4 {[%emt 0:00:08]} d6 {[%emt 0:00:04]} 6. h3 {[%emt 0:00:05]} e5 {[%emt 0:07:10]} 7. d5 {[%emt 0:00:27]} Na6 {[%emt 0:01:46]} 8. Bg5 {[%emt 0:00:08]} c6 {[%emt 0:03:20]} 9. a3 {[%emt 0:03:01]} Bd7 {[%emt 0:13:30]} 10. b4 {[%emt 0:12:39]} cxd5 {[%emt 0:01:19]} 11. Nxd5 {[%emt 0:01:03]} Nb8 {[%emt 0:11:35]} 12. Nxf6+ {[%emt 0:03:19]} Bxf6 {[%emt 0:00:07]} 13. Bh6 {[%emt 0:00:01]} Re8 {[%emt 0:01:47]} 14. Qxd6 {[%emt 0:01:20]} Nc6 {[%emt 0:00:05]} 15. Qd1 {[%emt 0:04:02]} a5 {[%emt 0:03:51]} 16. b5 {[%emt 0:00:42]} Nd4 {[%emt 0:00:05]} 17. Bd3 {[%emt 0:04:46]} Ne6 {[%emt 0:03:21]} 18. O-O {[%emt 0:00:42]} Nc5 {[%emt 0:04:11]} 19. Bc2 {[%emt 0:00:44]} Be6 {[%emt 0:06:01]} 20. Qe2 {[%emt 0:00:52]} Rc8 {[%emt 0:00:49]} 21. Rfd1 {[%emt 0:02:16]} Qe7 {[%emt 0:00:05]} 22. Bd2 {[%emt 0:08:36]} b6 {[%emt 0:04:23]} 23. Be3 {[%emt 0:03:32]} Rc7 {[%emt 0:02:10]} 24. a4 {[%emt 0:01:23]} Rec8 {[%emt 0:00:24]} 25. Rd2 {[%emt 0:06:09]} Nd7 {[%emt 0:04:52]} 26. Qd1 {[%emt 0:04:33]} Bxc4 {[%emt 0:02:17]} 27. Bb3 {[%emt 0:00:05]} Bxb3 {[%emt 0:05:22]} 28. Qxb3 {[%emt 0:00:26]} Nc5 {[%emt 0:01:35]} 29. Qd5 {[%emt 0:03:38]} Ra7 {[%emt 0:02:21]} 30. Rc1 {[%emt 0:09:42]} Rac7 {[%emt 0:01:17]} 31. Rc4 {[%emt 0:07:04]} Qe8 {[%emt 0:11:44]} (31... Rd7 $2 32. Qxd7 (32. Rxc5 Rcd8 $18) 32... Nxd7 33. Rxc8+ Nf8 34. Bxb6 $18) (31... Kg7 $14) 32. Qd6 $18 {[%emt 0:01:16]} Bd8 {[%emt 0:00:16]} (32... Qe6 $142 33. Rd5 Qxd6 34. Rxd6 Ne6 35. Rxc7 Rxc7) 33. Bxc5 {[%emt 0:00:36]} (33. Qxb6 Nd7 (33... Rd7 34. Qxc5 Rxc5 35. Rxc5 $16) 34. Rxd7 Qxd7 35. Rxc7 Rxc7 $11 (35... Qxc7 36. Qa6 $11) (35... Bxc7 36. Qa7 $16)) (33. Qxe5 Be7 34. Rd5 f6) (33. Nxe5 $18 {[%cal Oe5g4] Threatens to win with Ng4!} h5 34. Rd5) 33... Be7 $16 {[%emt 0:00:14]} 34. Qxe5 {[%emt 0:04:54]} Bxc5 {[%emt 0:04:06]} 35. Qxe8+ {[%emt 0:00:03]} Rxe8 {[%emt 0:00:01]} 36. Kf1 {[%emt 0:00:07]} f6 {[%emt 0:00:03]} 37. Rd5 {[%emt 0:01:45]} Rce7 {[%emt 0:03:03] [#]} 38. e5 {[%emt 0:04:39]} (38. Nd2 $1 $16 {[%mdl 512]}) 38... fxe5 $14 {[%emt 0:02:28]} 39. Re4 {[%emt 0:00:05]} Kg7 {[%emt 0:01:11]} (39... Rf7 $11 {remains equal.}) 40. Rdxe5 {[%emt 0:00:23]} (40. Rexe5 $6 Kf6 41. Rxe7 Rxe7 $16) 40... Rxe5 {[%emt 0:00:05]} 41. Rxe5 {[%emt 0:00:04]} (41. Nxe5 Bd6 42. f4 g5 $11) 41... Rd8 {[%emt 0:00:05]} 42. Ke2 {[%emt 0:00:06]} Kf6 {[%emt 0:00:03]} 43. g4 {[%emt 0:00:32]} Rc8 {[%emt 0:01:43]} 44. g5+ {[%emt 0:00:18]} Kf7 {[%emt 0:00:22]} 45. Re4 {[%emt 0:00:49]} Bd6 {[%emt 0:00:02]} 46. Kd2 {[%emt 0:04:02]} Bb4+ {[%emt 0:00:33] [#]} 47. Kd1 $1 {[%emt 0:00:37]} Bd6 {[%emt 0:00:31]} 48. Nd2 {[%emt 0:00:37]} Rc3 {[%emt 0:00:58]} 49. Re3 {[%emt 0:00:03]} Rc5 {[%emt 0:00:17]} (49... Rc8 $16) 50. h4 {[%emt 0:01:25]} Be7 {[%emt 0:00:45]} 51. f3 {[%emt 0:03:48]} h6 {[%emt 0:00:26]} (51... Bd6 $16 {was called for.} 52. Re4 h6) 52. gxh6 $18 {[%emt 0:00:17]} Rh5 {[%emt 0:00:04]} 53. Nc4 {[%emt 0:00:41]} Rxh4 {[%emt 0:00:24]} (53... Rxh6 {was worth a try.} 54. Re4 (54. Nxb6 Bc5 $17) 54... Bd8) 54. Re4 {[%emt 0:01:10]} ({Inferior is} 54. Nxb6 Bc5 (54... Rxh6 $2 {too greedy.} 55. Nc4 $18) 55. Rc3 Bxb6 $17) 54... Rh1+ {[%emt 0:00:48]} 55. Re1 {[%emt 0:00:21]} Rxh6 {[%emt 0:00:26]} 56. Nxb6 {[%emt 0:00:17]} Rh3 {[%emt 0:00:38]} (56... Bd8 $142) 57. Nc4 $18 {[%emt 0:00:06]} Bb4 {[%emt 0:00:04]} 58. Re4 {[%emt 0:00:30]} Kf6 {[%emt 0:00:15]} 59. Ke2 {[%emt 0:01:19]} Rh2+ {[%emt 0:00:10]} 60. Kd3 {[%emt 0:00:07]} Rh3 {[%emt 0:01:20]} 61. Ne5 {[%emt 0:01:18]} Kf5 {[%emt 0:00:10]} 62. b6 {[%emt 0:00:15]} Bd6 {[%emt 0:00:19]} 63. b7 {[%emt 0:00:48]} Rh1 $2 {[%emt 0:01:27]} (63... Bb8 64. Nc6 Rxf3+ 65. Re3 Rf4 66. Nxb8 Rb4) 64. Nc4 {[%emt 0:00:05]} 1-0

[Event "Charlotte Spring IM-B 2024"]
[Site "Charlotte"]
[Date "2024.03.29"]
[Round "3.1"]
[White "Lima, Darcy"]
[Black "Diaz Charpentier, Kristel Meliss"]
[Result "1-0"]
[ECO "A46"]
[WhiteElo "2364"]
[BlackElo "1990"]
[Annotator "RC"]
[PlyCount "51"]
[EventDate "2024.03.27"]
[EventType "tourn"]
[EventCountry "USA"]
[SourceTitle "playchess.com"]
[Source "ChessBase"]
[SourceQuality "1"]
[TimeControl "5400+30"]

1. d4 {[%emt 0:00:02]} Nf6 {[%emt 0:00:14]} 2. Nf3 {[%emt 0:00:09]} e6 {[%emt 0:00:07]} 3. g3 {[%emt 0:00:07]} b5 {[%emt 0:00:05]} 4. Bg2 {[%emt 0:00:07]} Bb7 {[%emt 0:00:07]} 5. O-O {[%emt 0:03:57]} c5 {[%emt 0:00:25]} 6. c3 {[%emt 0:00:20]} Be7 {[%emt 0:00:26]} 7. Bg5 {[%emt 0:02:45]} Na6 {[%emt 0:02:42]} 8. Nbd2 {[%emt 0:01:07]} O-O {[%emt 0:02:04]} 9. Qb1 {[%emt 0:08:46]} Qb6 {[%emt 0:07:50]} 10. e4 {[%emt 0:05:00]} h6 {[%emt 0:04:34]} 11. Be3 {[%emt 0:07:29]} Rac8 {[%emt 0:03:38]} 12. a4 {[%emt 0:03:36]} c4 {[%emt 0:09:03]} 13. axb5 {[%emt 0:01:17]} Qxb5 {[%emt 0:04:47]} 14. h3 {[%emt 0:00:36]} Nh7 {[%emt 0:10:42]} 15. Qc2 {[%emt 0:03:29]} d5 {[%emt 0:15:19]} 16. e5 {[%emt 0:06:06]} Rc6 {[%emt 0:04:02]} 17. Nh2 {[%emt 0:00:54]} Rb6 {[%emt 0:01:24]} 18. Ra2 {[%emt 0:00:39]} Qd7 {[%emt 0:02:42]} 19. f4 {[%emt 0:03:36]} Bc6 {[%emt 0:06:12]} 20. g4 {[%emt 0:04:54]} Bb5 {[%emt 0:07:45]} 21. Ndf3 {[%emt 0:01:40]} Nb8 {[%emt 0:01:35]} 22. f5 {[%emt 0:00:51]} Nc6 {[%emt 0:00:15]} 23. f6 {[%emt 0:01:20]} gxf6 {[%emt 0:00:42]} 24. Bxh6 {[%emt 0:00:35]} Ra8 {[%emt 0:00:42]} 25. exf6 {[%emt 0:02:34]} Nxf6 {[%emt 0:02:27]} 26. Ng5 {[%emt 0:00:54]} 1-0

[Event "Charlotte Spring IM-B 2024"]
[Site "Charlotte"]
[Date "2024.03.29"]
[Round "3.2"]
[White "Tang, Benjamin"]
[Black "Bregadze, Levan"]
[Result "0-1"]
[ECO "B06"]
[WhiteElo "2324"]
[BlackElo "2435"]
[Annotator "TA"]
[PlyCount "126"]
[EventDate "2024.03.27"]
[EventType "tourn"]
[EventCountry "USA"]
[SourceTitle "playchess.com"]
[Source "ChessBase"]
[SourceQuality "1"]
[TimeControl "5400+30"]

{[%evp 10,126,43,55,81,66,70,75,92,62,70,65,63,61,135,127,127,114,139,80,93,70,56,47,51,58,154,161,156,152,205,196,201,189,191,186,190,197,195,185,245,254,270,256,246,99,96,104,102,104,94,110,81,116,102,91,134,123,142,102,120,127,131,170,158,168,172,142,381,411,333,247,254,269,315,302,282,238,439,239,245,245,235,238,460,235,249,258,340,0,1667,202,242,8,8,8,8,8,8,0,8,0,147,162,162,0,0,0,0,-29989,-29990,-29990,-29991,-29991,-29992,-29992,-29993,-29993,301]} 1. e4 {[%emt 0:00:04][%cal Be2e4,Be4e5][%mdl 32]} g6 {[%emt 0:00:13]} 2. d4 {[%emt 0:00:05]} Bg7 {[%emt 0:00:04]} 3. Nf3 {[%emt 0:00:04]} c6 {[%emt 0:00:24]} 4. Bd3 {[%emt 0:00:49]} d5 {[%emt 0:00:45]} 5. e5 {[%emt 0:00:38]} Bg4 {[%emt 0:01:24]} 6. Nbd2 {[%emt 0:00:16]} f6 {[%emt 0:03:00]} 7. h3 {[%emt 0:08:19]} Bxf3 {[%emt 0:00:15]} 8. Nxf3 {[%emt 0:00:02]} Nd7 {[%emt 0:01:04] White is better.} 9. Qe2 {[%emt 0:15:45]} fxe5 $1 {[%emt 0:07:02]} 10. dxe5 {[%emt 0:03:28]} Qc7 {[%emt 0:01:40]} 11. Bf4 {[%emt 0:01:55]} O-O-O {[%emt 0:05:28]} (11... e6 $14) 12. O-O $16 {[%emt 0:07:17]} e6 {[%emt 0:01:32]} 13. c4 {[%emt 0:01:47]} Ne7 {[%emt 0:03:30]} 14. Ng5 {[%emt 0:02:44]} (14. b4 $142) 14... Nc5 {[%emt 0:00:13]} 15. Nf7 {[%emt 0:01:33]} (15. Rae1 {simplifies} Nf5 16. Bxf5 gxf5 17. Qe3) 15... Rhf8 {[%emt 0:00:57]} 16. Nxd8 {[%emt 0:02:14]} Rxf4 {[%emt 0:04:41]} 17. Qe3 $1 {[%emt 0:00:24][%csl LRc5,LRf4]} Qxd8 {[%emt 0:03:22]} (17... Kxd8 $14 18. Qxc5 (18. Qxf4 Nxd3 19. Qh4 Bxe5 $17) 18... Bxe5) 18. Qxc5 {[%emt 0:00:39]} (18. Qxf4 Nxd3 19. Qf7 Nf5 $16 (19... Bxe5 20. Rad1 $11)) 18... Bxe5 {[%emt 0:00:14]} 19. Qe3 $1 $36 {[%emt 0:05:19][%mdl 2048] White is really pushing.} (19. Qxa7 dxc4 20. Qa8+ Bb8 $11) 19... Bc7 {[%emt 0:09:30]} (19... Qd6 $16 {is a better defense.}) 20. Qxe6+ $18 {[%emt 0:01:01]} ({Don't take} 20. Qxa7 $6 Qd6 $16) 20... Kb8 {[%emt 0:00:01]} 21. Rfe1 {[%emt 0:07:15]} Nc8 {[%emt 0:00:18]} 22. cxd5 {[%emt 0:01:20][%cal Bc4d5,Bd5c6][%mdl 32]} Rf6 {[%emt 0:00:03]} 23. Qg4 {[%emt 0:06:11]} Rf4 {[%emt 0:04:55]} 24. Qe2 {[%emt 0:09:37]} Rf8 {[%emt 0:03:49]} (24... Qxd5 {keeps fighting.} 25. Be4 Qg5) 25. dxc6 {[%emt 0:08:02]} Qd6 {[%emt 0:00:06]} 26. g3 {[%emt 0:00:13] aiming for cxb7.} Bb6 {[%emt 0:49:00]} 27. Qe5 {[%emt 0:00:17]} (27. Kh1 $18 {cxb7 is the strong threat.} Qxc6+ 28. Be4) 27... Bxf2+ $16 {[%emt 0:00:00]} 28. Kg2 {[%emt 0:00:05]} Bxe1 {[%emt 0:00:00]} 29. Qxd6+ $1 {[%emt 0:00:14]} (29. Rxe1 Qxe5 30. Rxe5 bxc6 $14) 29... Nxd6 {[%emt 0:01:30][%cal Bc8d6,Bd6f7,Bf7e5][%mdl 32]} 30. Rxe1 {[%emt 0:00:04]} bxc6 {[%emt 0:00:00][%mdl 4096] Endgame. KRB-KRN} 31. Re7 {[%emt 0:00:32]} Rf7 {[%emt 0:00:00]} 32. Rxf7 {[%emt 0:02:19]} Nxf7 {[%emt 0:01:30] KB-KN} 33. Kf3 $1 {[%emt 0:00:35]} Kc7 {[%emt 0:00:30]} 34. Kf4 {[%emt 0:00:29] Repels Ne5} Kd6 {[%emt 0:00:00]} 35. Bc2 c5 {[%emt 0:00:00] [#]} 36. Bb3 Ne5 {[%emt 0:00:00] [#]} 37. Kg5 $1 Ke7 {[%emt 0:02:00]} 38. Bd5 {[%emt 0:07:33]} Kf8 $2 {[%emt 0:00:00]} (38... c4 $16 39. Kh6 a5 40. Kxh7 Kf6) 39. Kh6 $18 Ke7 {[%emt 0:01:00]} 40. Kg7 {[%emt 0:01:38]} ({Less strong is} 40. Kxh7 Kf6 41. h4 Nd7) 40... g5 {[%emt 0:00:00]} 41. Kxh7 {[%emt 0:01:24] And now Kg7 would win.} Kf6 {[%emt 0:01:00]} 42. h4 {[%emt 0:01:29]} gxh4 {[%emt 0:00:00]} 43. gxh4 {[%emt 0:00:01] Black must now prevent b3.} Ng6 $2 {[%emt 0:01:00]} (43... Ng4 44. Bf3 Ne3) 44. h5 {[%emt 0:00:09]} Ne7 {[%emt 0:00:30]} 45. Be4 {[%emt 0:01:05]} a5 {[%emt 0:00:00]} 46. Bd3 {[%emt 0:00:38]} Kg5 $2 {[%emt 0:01:00]} (46... Nd5 {was called for.} 47. Kg8 Kg5) 47. h6 {[%emt 0:00:26]} (47. Kg7 $142 {Threatens to win with h6.} Kxh5 48. Kf6 Nd5+ 49. Ke5) 47... Kf6 {[%emt 0:00:30]} 48. Be4 {[%emt 0:01:39]} Kf7 {[%emt 0:00:30]} 49. Bd3 $2 {[%emt 0:00:49]} (49. Bf3) 49... Kf6 {[%emt 0:00:00]} 50. a4 $2 {[%emt 0:01:08]} (50. a3 Kf7 51. Ba6) 50... Kf7 {[%emt 0:00:00]} 51. b3 $2 {[%emt 0:00:06]} (51. Bb5 $18) 51... Kf6 $11 {[%emt 0:01:30]} 52. Bb5 {[%emt 0:01:10]} Nf5 {[%emt 0:00:30]} 53. Bd7 {[%emt 0:00:07] White wants to mate with Bxf5.} (53. Bc4 $5) 53... Ne7 {[%emt 0:00:00]} 54. Bb5 {[%emt 0:02:54]} (54. Bg4 $5) 54... Nf5 {[%emt 0:00:00]} 55. Bd3 {[%emt 0:00:06]} ({White should play} 55. Bc4 $11) 55... Ne7 $16 {[%emt 0:00:00]} 56. Kh8 {[%emt 0:01:24]} Kf7 {[%emt 0:02:00]} 57. Bc4+ $2 {[%emt 0:00:57]} (57. Bc2 $18) 57... Kg6 $11 {[%emt 0:00:00]} 58. h7 {[%emt 0:00:26]} Kf6 $1 {[%emt 0:00:00]} 59. Be2 $2 {[%emt 0:01:15][%mdl 8192]} (59. b4 $11 cxb4 60. Bb3) 59... Kf7 {[%emt 0:00:00][%cal Re7g6] Black mates.} 60. Bd3 {[%emt 0:00:37]} Nc6 {[%emt 0:00:00]} 61. Bc4+ {[%emt 0:00:41]} Kf8 {[%emt 0:00:00]} 62. Be2 {[%emt 0:00:31]} Ne5 {[%emt 0:03:00][%cal Re5g6]} 63. Bh5 {[%emt 0:00:04]} Nf7+ {[%emt 0:00:00][%mdl 32768] Weighted Error Value: White=0.52/Black=0.17 (very precise) .  Loses game:     	White=1     	Black=1      Missed win:     	White=1     	---        Mistake:       	White=6     	Black=6      Inaccurate:     	White=1     	Black=1      OK:         	White=20    	Black=24     Best:        	White=6     	Black=12     Strong:       	White=5     	Black=2     . Loss on time!?} 0-1

[Event "Charlotte Spring IM-B 2024"]
[Site "Charlotte"]
[Date "2024.03.29"]
[Round "3.3"]
[White "Jiang, Andrew"]
[Black "Castillo Coca, Mairebis"]
[Result "1-0"]
[ECO "B08"]
[WhiteElo "2181"]
[BlackElo "2043"]
[Annotator "RC"]
[PlyCount "55"]
[EventDate "2024.03.27"]
[EventType "tourn"]
[EventCountry "USA"]
[SourceTitle "playchess.com"]
[Source "ChessBase"]
[SourceQuality "1"]
[TimeControl "5400+30"]

1. e4 {[%emt 0:00:26]} d6 {[%emt 0:00:42]} 2. d4 {[%emt 0:00:13]} Nf6 {[%emt 0:00:43]} 3. Nc3 {[%emt 0:00:12]} g6 {[%emt 0:00:11]} 4. Bg5 {[%emt 0:00:12]} Bg7 {[%emt 0:00:02]} 5. Nf3 {[%emt 0:00:34]} h6 {[%emt 0:00:18]} 6. Be3 {[%emt 0:00:10]} c6 {[%emt 0:00:34]} 7. Qd2 {[%emt 0:00:16]} Qa5 {[%emt 0:04:47]} 8. h3 {[%emt 0:05:04]} Nfd7 {[%emt 0:06:52]} 9. Bd3 {[%emt 0:04:41]} b5 {[%emt 0:04:20]} 10. O-O {[%emt 0:01:41]} b4 {[%emt 0:05:06]} 11. Ne2 {[%emt 0:00:28]} c5 {[%emt 0:01:00]} 12. a3 {[%emt 0:01:12]} Nc6 {[%emt 0:10:32]} 13. axb4 {[%emt 0:00:31]} Qxb4 {[%emt 0:00:23]} 14. c3 {[%emt 0:00:09]} Qb8 {[%emt 0:03:30]} 15. Rfc1 {[%emt 0:09:16]} a5 {[%emt 0:01:48]} 16. Ng3 {[%emt 0:05:41]} cxd4 {[%emt 0:12:22]} 17. cxd4 {[%emt 0:00:31]} Nb4 {[%emt 0:00:01]} 18. Bc4 {[%emt 0:02:30]} Nb6 {[%emt 0:05:26]} 19. Bb5+ {[%emt 0:02:29]} Bd7 {[%emt 0:00:02]} 20. Bxd7+ {[%emt 0:00:17]} Nxd7 {[%emt 0:00:01]} 21. Ra3 {[%emt 0:01:25]} h5 {[%emt 0:03:12]} 22. Bf4 {[%emt 0:18:52]} Qb5 {[%emt 0:06:51]} 23. Rc7 {[%emt 0:06:29]} Nb6 {[%emt 0:16:16]} 24. Qc1 {[%emt 0:01:00]} h4 {[%emt 0:01:53]} 25. Nf1 {[%emt 0:00:29]} Nd3 {[%emt 0:00:44]} 26. Rxd3 {[%emt 0:00:45]} Qxd3 {[%emt 0:00:34]} 27. Qc6+ {[%emt 0:00:01]} Kf8 {[%emt 0:00:15]} 28. Qxa8+ {[%emt 0:00:56]} 1-0